fUST/lending_fUST_20260518
["ID","MTS","AMOUNT","RATE_DAILY","PERIOD"]
[422537378,1779042640000,-500.0,0.00010958,2]
[422537392,1779042640000,-815.97,0.00010958,2]
[422537395,1779042640000,-500.0,0.00010958,2]
[422537393,1779042640000,-500.0,0.00010958,2]
[422537370,1779042640000,-500.0,0.00010958,2]
[422537390,1779042640000,-603.13,0.00010958,2]
[422537386,1779042640000,-500.0,0.00010958,2]
[422537376,1779042640000,-236.16950705,0.00010958,2]
[422537374,1779042640000,-500.0,0.00010958,2]
[422537368,1779042640000,-500.0,0.00010958,2]
[422537388,1779042640000,-522.81183892,0.00010958,2]
[422537380,1779042640000,-500.0,0.00010958,2]
[422537405,1779042640000,-593.13,0.00010958,2]
[422537382,1779042640000,-500.0,0.00010958,2]
[422537399,1779042640000,-610.0,0.00010958,2]
[422537397,1779042640000,-500.0,0.00010958,2]
[422537401,1779042640000,-500.0,0.00010958,2]
[422537406,1779042640000,-500.0,0.00010958,2]
[422537414,1779042640000,-500.0,0.00010958,2]
[422537408,1779042640000,-397.71590836,0.00010958,2]
[422537417,1779042640000,-752.52,0.00010958,2]
[422537421,1779042640000,-541.47,0.00010958,2]
[422537412,1779042640000,-500.0,0.00010958,2]
[422537372,1779042640000,-2130.5,0.00010958,2]
[422537403,1779042640000,-500.0,0.00010958,2]
[422537384,1779042640000,-185.68464717,0.00010958,2]
[422537358,1779042640000,-926.37,0.00010958,2]
[422537340,1779042640000,-500.0,0.00010958,2]
[422537364,1779042640000,-500.0,0.00010958,2]
[422537410,1779042640000,-573.83,0.00010958,2]
[422537311,1779042640000,-550.31,0.00010958,2]
[422537313,1779042640000,-262.21684515,0.00010958,2]
[422537315,1779042640000,-574.89,0.00010958,2]
[422537309,1779042640000,-500.0,0.00010958,2]
[422537319,1779042640000,-619.27,0.00010958,2]
[422537323,1779042640000,-500.0,0.00010958,2]
[422537321,1779042640000,-500.0,0.00010958,2]
[422537325,1779042640000,-500.0,0.00010958,2]
[422537317,1779042640000,-500.0,0.00010958,2]
[422537328,1779042640000,-500.0,0.00010958,2]
[422537330,1779042640000,-500.0,0.00010958,2]
[422537347,1779042640000,-500.0,0.00010958,2]
[422537336,1779042640000,-500.0,0.00010958,2]
[422537338,1779042640000,-503.23049003,0.00010958,2]
[422537332,1779042640000,-500.0,0.00010958,2]
[422537334,1779042640000,-500.0,0.00010958,2]
[422537342,1779042640000,-1486.37,0.00010958,2]
[422537344,1779042640000,-1115.76,0.00010958,2]
[422537360,1779042640000,-721.64,0.00010958,2]
[422537366,1779042640000,-500.0,0.00010958,2]
[422537352,1779042640000,-500.0,0.00010958,2]
[422537355,1779042640000,-704.38,0.00010958,2]
[422537363,1779042640000,-500.0,0.00010958,2]
[422537349,1779042640000,-500.0,0.00010958,2]
[422537357,1779042640000,-2556.3,0.00010958,2]
[422537326,1779042640000,-779.43,0.00010958,2]
[422537419,1779042640000,-500.0,0.00010958,2]
[422537429,1779042640000,-500.0,0.00010958,2]
[422537423,1779042640000,-500.0,0.00010958,2]
[422537489,1779042640000,-500.0,0.00010958,2]
[422537491,1779042640000,-500.0,0.00010958,2]
[422537507,1779042640000,-694.7,0.00010958,2]
[422537495,1779042640000,-2535.9,0.00010958,2]
[422537497,1779042640000,-1931.9,0.00010958,2]
[422537493,1779042640000,-500.0,0.00010958,2]
[422537499,1779042640000,-1348.42,0.00010958,2]
[422537501,1779042640000,-500.0,0.00010958,2]
[422537503,1779042640000,-500.0,0.00010958,2]
[422537509,1779042640000,-500.0,0.00010958,2]
[422537505,1779042640000,-500.0,0.00010958,2]
[422537524,1779042640000,-500.0,0.00010958,2]
[422537516,1779042640000,-582.29,0.00010958,2]
[422537520,1779042640000,-500.0,0.00010958,2]
[422537518,1779042640000,-500.0,0.00010958,2]
[422537522,1779042640000,-2867.48,0.00010958,2]
[422537526,1779042640000,-500.0,0.00010958,2]
[422537530,1779042640000,-619.86,0.00010958,2]
[422537528,1779042640000,-504.54796605,0.00010958,2]
[422537534,1779042640000,-257.95597625,0.00010958,2]
[422537532,1779042640000,-500.0,0.00010958,2]
[422537541,1779042640000,-500.0,0.00010958,2]
[422537539,1779042640000,-500.0,0.00010958,2]
[422537536,1779042640000,-500.0,0.00010958,2]
[422537425,1779042640000,-500.0,0.00010958,2]
[422537487,1779042640000,-500.0,0.00010958,2]
[422537484,1779042640000,-849.12,0.00010958,2]
[422537542,1779042640000,-174.59528875,0.00010958,2]
[422537477,1779042640000,-1725.2,0.00010958,2]
[422537485,1779042640000,-3648.92,0.00010958,2]
[422537431,1779042640000,-500.0,0.00010958,2]
[422537444,1779042640000,-500.0,0.00010958,2]
[422537446,1779042640000,-500.0,0.00010958,2]
[422537442,1779042640000,-500.0,0.00010958,2]
[422537447,1779042640000,-500.0,0.00010958,2]
[422537433,1779042640000,-500.0,0.00010958,2]
[422537440,1779042640000,-500.0,0.00010958,2]
[422537436,1779042640000,-500.0,0.00010958,2]
[422537453,1779042640000,-610.6,0.00010958,2]
[422537438,1779042640000,-312.62245159,0.00010958,2]
[422537449,1779042640000,-500.0,0.00010958,2]
[422537451,1779042640000,-500.0,0.00010958,2]
[422537427,1779042640000,-500.0,0.00010958,2]
[422537457,1779042640000,-914.46,0.00010958,2]
[422537455,1779042640000,-500.0,0.00010958,2]
[422537473,1779042640000,-500.0,0.00010958,2]
[422537475,1779042640000,-500.0,0.00010958,2]
[422537479,1779042640000,-504.53327368,0.00010958,2]
[422537467,1779042640000,-500.0,0.00010958,2]
[422537482,1779042640000,-500.0,0.00010958,2]
[422537469,1779042640000,-1007.19,0.00010958,2]
[422537463,1779042640000,-500.0,0.00010958,2]
[422537461,1779042640000,-500.0,0.00010958,2]
[422537459,1779042640000,-593.61,0.00010958,2]
[422537471,1779042640000,-500.0,0.00010958,2]
[422537465,1779042640000,-677.63,0.00010958,2]
[422537663,1779042641000,-1429.88,0.00010958,2]
[422537665,1779042641000,-500.0,0.00010958,2]
[422537651,1779042641000,-733.32,0.00010958,2]
[422537649,1779042641000,-500.0,0.00010958,2]
[422537647,1779042641000,-500.0,0.00010958,2]
[422537631,1779042641000,-500.0,0.00010958,2]
[422537642,1779042641000,-500.0,0.00010958,2]
[422537645,1779042641000,-500.0,0.00010958,2]
[422537667,1779042641000,-742.35,0.00010958,2]
[422537661,1779042641000,-701.94,0.00010958,2]
[422537638,1779042641000,-500.0,0.00010958,2]
[422537669,1779042641000,-500.0,0.00010958,2]
[422537657,1779042641000,-500.0,0.00010958,2]
[422537655,1779042641000,-962.93,0.00010958,2]
[422537653,1779042641000,-580.48,0.00010958,2]
[422537675,1779042641000,-500.0,0.00010958,2]
[422537673,1779042641000,-731.59,0.00010958,2]
[422537671,1779042641000,-2608.85,0.00010958,2]
[422537689,1779042641000,-500.0,0.00010958,2]
[422537692,1779042641000,-224.79482158,0.00010958,2]
[422537690,1779042641000,-500.0,0.00010958,2]
[422537696,1779042641000,-500.0,0.00010958,2]
[422537677,1779042641000,-500.0,0.00010958,2]
[422537633,1779042641000,-689.52,0.00010958,2]
[422537659,1779042641000,-582.86,0.00010958,2]
[422537635,1779042641000,-500.0,0.00010958,2]
[422537603,1779042641000,-714.18,0.00010958,2]
[422537627,1779042641000,-500.0,0.00010958,2]
[422537593,1779042641000,-504.79106136,0.00010958,2]
[422537595,1779042641000,-282.43196104,0.00010958,2]
[422537591,1779042641000,-500.0,0.00010958,2]
[422537589,1779042641000,-351.42471125,0.00010958,2]
[422537597,1779042641000,-500.0,0.00010958,2]
[422537599,1779042641000,-500.0,0.00010958,2]
[422537612,1779042641000,-500.0,0.00010958,2]
[422537614,1779042641000,-777.64,0.00010958,2]
[422537602,1779042641000,-500.0,0.00010958,2]
[422537619,1779042641000,-761.95,0.00010958,2]
[422537601,1779042641000,-731.57,0.00010958,2]
[422537640,1779042641000,-504.51009699,0.00010958,2]
[422537616,1779042641000,-500.0,0.00010958,2]
[422537617,1779042641000,-500.0,0.00010958,2]
[422537621,1779042641000,-1070.98,0.00010958,2]
[422537608,1779042641000,-500.0,0.00010958,2]
[422537609,1779042641000,-1363.65,0.00010958,2]
[422537606,1779042641000,-500.0,0.00010958,2]
[422537604,1779042641000,-500.0,0.00010958,2]
[422537623,1779042641000,-5397.15,0.00010958,2]
[422537643,1779042641000,-960.56,0.00010958,2]
[422537625,1779042641000,-500.0,0.00010958,2]
[422537636,1779042641000,-5475.47,0.00010958,2]
[422537629,1779042641000,-500.0,0.00010958,2]
[422537605,1779042641000,-649.39,0.00010958,2]
[422537694,1779042641000,-500.0,0.00010958,2]
[422537679,1779042641000,-500.0,0.00010958,2]
[422537685,1779042641000,-1000.0,0.00010958,2]
[422537751,1779042641000,-963.64,0.00010958,2]
[422537733,1779042641000,-622.23316246,0.00010958,2]
[422537749,1779042641000,-500.0,0.00010958,2]
[422537740,1779042641000,-676.75,0.00010958,2]
[422537782,1779042641000,-632.93,0.00010958,2]
[422537758,1779042641000,-500.0,0.00010958,2]
[422537772,1779042641000,-758.31,0.00010958,2]
[422537780,1779042641000,-500.0,0.00010958,2]
[422537778,1779042641000,-739.92,0.00010958,2]
[422537774,1779042641000,-500.0,0.00010958,2]
[422537762,1779042641000,-5051.23,0.00010958,2]
[422537745,1779042641000,-500.0,0.00010958,2]
[422537770,1779042641000,-500.0,0.00010958,2]
[422537784,1779042641000,-500.0,0.00010958,2]
[422537766,1779042641000,-520.18,0.00010958,2]
[422537768,1779042641000,-500.0,0.00010958,2]
[422537764,1779042641000,-500.0,0.00010958,2]
[422537788,1779042641000,-500.0,0.00010958,2]
[422537790,1779042641000,-2337.43,0.00010958,2]
[422537792,1779042641000,-500.0,0.00010958,2]
[422537796,1779042641000,-500.0,0.00010958,2]
[422537794,1779042641000,-500.0,0.00010958,2]
[422537786,1779042641000,-2194.81,0.00010958,2]
[422537683,1779042641000,-2225.31,0.00010958,2]
[422537760,1779042641000,-3012.69,0.00010958,2]
[422537737,1779042641000,-500.0,0.00010958,2]
[422537776,1779042641000,-500.0,0.00010958,2]
[422537756,1779042641000,-500.0,0.00010958,2]
[422537700,1779042641000,-807.24,0.00010958,2]
[422537753,1779042641000,-1140.32,0.00010958,2]
[422537687,1779042641000,-712.83,0.00010958,2]
[422537702,1779042641000,-500.0,0.00010958,2]
[422537681,1779042641000,-500.0,0.00010958,2]
[422537698,1779042641000,-500.0,0.00010958,2]
[422537704,1779042641000,-1070.91,0.00010958,2]
[422537731,1779042641000,-692.42,0.00010958,2]
[422537706,1779042641000,-422.79763512,0.00010958,2]
[422537710,1779042641000,-854.41,0.00010958,2]
[422537714,1779042641000,-528.31,0.00010958,2]
[422537718,1779042641000,-500.0,0.00010958,2]
[422537712,1779042641000,-500.0,0.00010958,2]
[422537724,1779042641000,-500.0,0.00010958,2]
[422537735,1779042641000,-500.0,0.00010958,2]
[422537741,1779042641000,-673.73,0.00010958,2]
[422537720,1779042641000,-838.62,0.00010958,2]
[422537754,1779042641000,-500.0,0.00010958,2]
[422537747,1779042641000,-1574.37,0.00010958,2]
[422537726,1779042641000,-500.0,0.00010958,2]
[422537743,1779042641000,-500.0,0.00010958,2]
[422537716,1779042641000,-799.06,0.00010958,2]
[422537722,1779042641000,-500.0,0.00010958,2]
[422537729,1779042641000,-924.14,0.00010958,2]
[422537727,1779042641000,-2089.41,0.00010958,2]
[422537708,1779042641000,-500.0,0.00010958,2]
[422537889,1779042642000,-500.0,0.00010958,2]
[422537884,1779042642000,-500.0,0.00010958,2]
[422537877,1779042642000,-1594.9,0.00010958,2]
[422537887,1779042642000,-500.0,0.00010958,2]
[422537879,1779042642000,-500.0,0.00010958,2]
[422537885,1779042642000,-1409.02,0.00010958,2]
[422537871,1779042642000,-500.0,0.00010958,2]
[422537883,1779042642000,-500.0,0.00010958,2]
[422537873,1779042642000,-421.97180478,0.00010958,2]
[422537881,1779042642000,-500.0,0.00010958,2]
[422537869,1779042642000,-500.0,0.00010958,2]
[422537886,1779042642000,-742.74,0.00010958,2]
[422537867,1779042642000,-500.0,0.00010958,2]
[422537882,1779042642000,-624.01,0.00010958,2]
[422537891,1779042642000,-1025.26,0.00010958,2]
[422537912,1779042642000,-500.0,0.00010958,2]
[422537892,1779042642000,-611.12,0.00010958,2]
[422537894,1779042642000,-500.0,0.00010958,2]
[422537896,1779042642000,-500.0,0.00010958,2]
[422537900,1779042642000,-538.34,0.00010958,2]
[422537898,1779042642000,-500.0,0.00010958,2]
[422537910,1779042642000,-500.0,0.00010958,2]
[422537904,1779042642000,-2461.27,0.00010958,2]
[422537902,1779042642000,-1611.6,0.00010958,2]
[422537906,1779042642000,-500.0,0.00010958,2]
[422537908,1779042642000,-500.0,0.00010958,2]
[422537918,1779042642000,-500.0,0.00010958,2]
[422537916,1779042642000,-443.22407632,0.00010958,2]
[422537922,1779042642000,-508.0740517,0.00010958,2]
[422537865,1779042642000,-808.55,0.00010958,2]
[422537875,1779042642000,-500.0,0.00010958,2]
[422537845,1779042642000,-500.0,0.00010958,2]
[422537811,1779042642000,-621.77,0.00010958,2]
[422537863,1779042642000,-500.0,0.00010958,2]
[422537809,1779042642000,-500.0,0.00010958,2]
[422537802,1779042642000,-500.0,0.00010958,2]
[422537804,1779042642000,-669.32,0.00010958,2]
[422537798,1779042642000,-343.18145222,0.00010958,2]
[422537800,1779042642000,-721.78,0.00010958,2]
[422537806,1779042642000,-506.58181199,0.00010958,2]
[422537926,1779042642000,-500.0,0.00010958,2]
[422537808,1779042642000,-574.6,0.00010958,2]
[422537819,1779042642000,-500.0,0.00010958,2]
[422537815,1779042642000,-576.88627276,0.00010958,2]
[422537813,1779042642000,-4993.46,0.00010958,2]
[422537818,1779042642000,-500.0,0.00010958,2]
[422537825,1779042642000,-500.0,0.00010958,2]
[422537823,1779042642000,-660.68,0.00010958,2]
[422537829,1779042642000,-542.72,0.00010958,2]
[422537831,1779042642000,-500.0,0.00010958,2]
[422537822,1779042642000,-500.0,0.00010958,2]
[422537847,1779042642000,-608.56,0.00010958,2]
[422537849,1779042642000,-500.0,0.00010958,2]
[422537859,1779042642000,-500.0,0.00010958,2]
[422537853,1779042642000,-500.0,0.00010958,2]
[422537861,1779042642000,-500.0,0.00010958,2]
[422537851,1779042642000,-1547.83,0.00010958,2]
[422537857,1779042642000,-500.0,0.00010958,2]
[422537843,1779042642000,-500.0,0.00010958,2]
[422537827,1779042642000,-686.11,0.00010958,2]
[422537841,1779042642000,-500.0,0.00010958,2]
[422537839,1779042642000,-500.0,0.00010958,2]
[422537837,1779042642000,-500.0,0.00010958,2]
[422537835,1779042642000,-500.0,0.00010958,2]
[422537833,1779042642000,-500.0,0.00010958,2]
[422537855,1779042642000,-500.0,0.00010958,2]
[422537920,1779042642000,-500.0,0.00010958,2]
[422537914,1779042642000,-2361.05,0.00010958,2]
[422537928,1779042642000,-500.0,0.00010958,2]
[422537999,1779042642000,-4543.19,0.00010958,2]
[422538001,1779042642000,-4695.27,0.00010958,2]
[422538010,1779042642000,-1277.98,0.00010958,2]
[422538003,1779042642000,-500.0,0.00010958,2]
[422538004,1779042642000,-500.0,0.00010958,2]
[422538014,1779042642000,-500.0,0.00010958,2]
[422538016,1779042642000,-625.17,0.00010958,2]
[422538012,1779042642000,-500.0,0.00010958,2]
[422538018,1779042642000,-500.0,0.00010958,2]
[422538006,1779042642000,-500.0,0.00010958,2]
[422538008,1779042642000,-500.0,0.00010958,2]
[422538020,1779042642000,-500.0,0.00010958,2]
[422538022,1779042642000,-790.34,0.00010958,2]
[422538026,1779042642000,-3902.84,0.00010958,2]
[422538039,1779042642000,-3336.81,0.00010958,2]
[422538037,1779042642000,-1115.05,0.00010958,2]
[422538040,1779042642000,-500.0,0.00010958,2]
[422537934,1779042642000,-500.0,0.00010958,2]
[422538052,1779042642000,-500.0,0.00010958,2]
[422538054,1779042642000,-1633.7,0.00010958,2]
[422538055,1779042642000,-500.0,0.00010958,2]
[422538050,1779042642000,-9064.24,0.00010958,2]
[422538048,1779042642000,-4046.15,0.00010958,2]
[422537995,1779042642000,-681.67,0.00010958,2]
[422538046,1779042642000,-500.0,0.00010958,2]
[422538035,1779042642000,-2887.65,0.00010958,2]
[422538029,1779042642000,-7873.3,0.00010958,2]
[422538031,1779042642000,-3649.76,0.00010958,2]
[422538028,1779042642000,-737.6,0.00010958,2]
[422538044,1779042642000,-1107.27,0.00010958,2]
[422538033,1779042642000,-500.0,0.00010958,2]
[422538042,1779042642000,-500.0,0.00010958,2]
[422537997,1779042642000,-500.0,0.00010958,2]
[422538024,1779042642000,-4006.28,0.00010958,2]
[422537980,1779042642000,-911.19,0.00010958,2]
[422537965,1779042642000,-500.0,0.00010958,2]
[422537959,1779042642000,-500.0,0.00010958,2]
[422537963,1779042642000,-500.0,0.00010958,2]
[422537957,1779042642000,-500.0,0.00010958,2]
[422537949,1779042642000,-500.0,0.00010958,2]
[422537945,1779042642000,-500.0,0.00010958,2]
[422537951,1779042642000,-580.62,0.00010958,2]
[422537942,1779042642000,-570.59,0.00010958,2]
[422537940,1779042642000,-500.0,0.00010958,2]
[422537936,1779042642000,-500.0,0.00010958,2]
[422537938,1779042642000,-500.0,0.00010958,2]
[422537932,1779042642000,-11440.52,0.00010958,2]
[422537930,1779042642000,-502.5,0.00010958,2]
[422537993,1779042642000,-500.0,0.00010958,2]
[422537943,1779042642000,-500.0,0.00010958,2]
[422537947,1779042642000,-2408.65,0.00010958,2]
[422537924,1779042642000,-588.89,0.00010958,2]
[422537953,1779042642000,-764.18,0.00010958,2]
[422537961,1779042642000,-500.0,0.00010958,2]
[422537991,1779042642000,-1627.57,0.00010958,2]
[422537976,1779042642000,-500.0,0.00010958,2]
[422537989,1779042642000,-500.0,0.00010958,2]
[422537987,1779042642000,-500.0,0.00010958,2]
[422537985,1779042642000,-506.11803161,0.00010958,2]
[422537974,1779042642000,-911.86,0.00010958,2]
[422537978,1779042642000,-500.0,0.00010958,2]
[422537982,1779042642000,-500.0,0.00010958,2]
[422537972,1779042642000,-691.85,0.00010958,2]
[422537970,1779042642000,-1386.26827552,0.00010958,2]
[422537967,1779042642000,-2690.51172448,0.00010958,2]
[422537955,1779042642000,-5145.29,0.00010958,2]
[422537983,1779042642000,-737.15,0.00010958,2]
[422538149,1779042643000,-1109.0,0.00010958,2]
[422538132,1779042643000,-4568.83,0.00010958,2]
[422538158,1779042643000,-1682.09,0.00010958,2]
[422538156,1779042643000,-2096.56,0.00010958,2]
[422538124,1779042643000,-500.0,0.00010958,2]
[422538134,1779042643000,-500.0,0.00010958,2]
[422538144,1779042643000,-500.0,0.00010958,2]
[422538142,1779042643000,-718.13,0.00010958,2]
[422538151,1779042643000,-500.0,0.00010958,2]
[422538138,1779042643000,-500.0,0.00010958,2]
[422538140,1779042643000,-500.0,0.00010958,2]
[422538146,1779042643000,-500.0,0.00010958,2]
[422538153,1779042643000,-500.0,0.00010958,2]
[422538136,1779042643000,-500.0,0.00010958,2]
[422538155,1779042643000,-500.0,0.00010958,2]
[422538174,1779042643000,-9066.96,0.00010958,2]
[422538163,1779042643000,-500.0,0.00010958,2]
[422538165,1779042643000,-500.0,0.00010958,2]
[422538168,1779042643000,-791.96,0.00010958,2]
[422538167,1779042643000,-1345.58,0.00010958,2]
[422538171,1779042643000,-703.92,0.00010958,2]
[422538176,1779042643000,-500.0,0.00010958,2]
[422538180,1779042643000,-500.0,0.00010958,2]
[422538178,1779042643000,-8276.04,0.00010958,2]
[422538172,1779042643000,-883.1,0.00010958,2]
[422538182,1779042643000,-500.0,0.00010958,2]
[422538183,1779042643000,-3348.68,0.00010958,2]
[422538185,1779042643000,-500.0,0.00010958,2]
[422538198,1779042643000,-500.0,0.00010958,2]
[422538120,1779042643000,-500.0,0.00010958,2]
[422538160,1779042643000,-2867.35,0.00010958,2]
[422538118,1779042643000,-500.0,0.00010958,2]
[422538057,1779042643000,-1486.43,0.00010958,2]
[422538128,1779042643000,-2186.05,0.00010958,2]
[422538059,1779042643000,-500.0,0.00010958,2]
[422538061,1779042643000,-500.0,0.00010958,2]
[422538076,1779042643000,-500.0,0.00010958,2]
[422538063,1779042643000,-3176.51,0.00010958,2]
[422538072,1779042643000,-500.0,0.00010958,2]
[422538065,1779042643000,-3750.4,0.00010958,2]
[422538074,1779042643000,-936.82,0.00010958,2]
[422538078,1779042643000,-668.4,0.00010958,2]
[422538069,1779042643000,-8388.86,0.00010958,2]
[422538067,1779042643000,-782.44,0.00010958,2]
[422538090,1779042643000,-500.0,0.00010958,2]
[422538098,1779042643000,-500.0,0.00010958,2]
[422538084,1779042643000,-500.0,0.00010958,2]
[422538080,1779042643000,-502.83,0.00010958,2]
[422538088,1779042643000,-681.64,0.00010958,2]
[422538096,1779042643000,-570.73,0.00010958,2]
[422538092,1779042643000,-500.0,0.00010958,2]
[422538116,1779042643000,-500.0,0.00010958,2]
[422538129,1779042643000,-879.53,0.00010958,2]
[422538126,1779042643000,-500.0,0.00010958,2]
[422538114,1779042643000,-4733.27,0.00010958,2]
[422538109,1779042643000,-500.0,0.00010958,2]
[422538106,1779042643000,-500.0,0.00010958,2]
[422538122,1779042643000,-500.0,0.00010958,2]
[422538104,1779042643000,-10841.66,0.00010958,2]
[422538112,1779042643000,-500.0,0.00010958,2]
[422538100,1779042643000,-500.0,0.00010958,2]
[422538086,1779042643000,-56189.47,0.00010958,2]
[422538102,1779042643000,-2437.05,0.00010958,2]
[422538094,1779042643000,-500.0,0.00010958,2]
[422538082,1779042643000,-500.0,0.00010958,2]
[422538108,1779042643000,-596.15021096,0.00010958,2]
[422538200,1779042643000,-500.0,0.00010958,2]
[422538203,1779042643000,-500.0,0.00010958,2]
[422538205,1779042643000,-500.0,0.00010958,2]
[422538260,1779042643000,-151.0,0.00010959,2]
[422538264,1779042643000,-151.0,0.00010959,2]
[422538262,1779042643000,-151.0,0.00010959,2]
[422538289,1779042643000,-151.0,0.00010959,2]
[422538277,1779042643000,-151.0,0.00010959,2]
[422538269,1779042643000,-151.0,0.00010959,2]
[422538273,1779042643000,-151.0,0.00010959,2]
[422538275,1779042643000,-151.0,0.00010959,2]
[422538268,1779042643000,-281.744012,0.00010959,2]
[422538279,1779042643000,-151.0,0.00010959,2]
[422538287,1779042643000,-151.0,0.00010959,2]
[422538266,1779042643000,-151.0,0.00010959,2]
[422538283,1779042643000,-151.0,0.00010959,2]
[422538285,1779042643000,-151.0,0.00010959,2]
[422538281,1779042643000,-151.0,0.00010959,2]
[422538271,1779042643000,-151.0,0.00010959,2]
[422538293,1779042643000,-294.032,0.00010959,2]
[422538318,1779042643000,-151.0,0.00010959,2]
[422538291,1779042643000,-151.0,0.00010959,2]
[422538316,1779042643000,-205.891146,0.00010959,2]
[422538201,1779042643000,-3485.28,0.00010958,2]
[422538304,1779042643000,-151.0,0.00010959,2]
[422538306,1779042643000,-151.0,0.00010959,2]
[422538245,1779042643000,-151.0,0.00010959,2]
[422538312,1779042643000,-151.0,0.00010959,2]
[422538314,1779042643000,-151.0,0.00010959,2]
[422538310,1779042643000,-151.0,0.00010959,2]
[422538298,1779042643000,-151.0,0.00010959,2]
[422538300,1779042643000,-151.0,0.00010959,2]
[422538294,1779042643000,-151.0,0.00010959,2]
[422538296,1779042643000,-151.0,0.00010959,2]
[422538308,1779042643000,-151.0,0.00010959,2]
[422538246,1779042643000,-151.0,0.00010959,2]
[422538302,1779042643000,-151.0,0.00010959,2]
[422538248,1779042643000,-151.0,0.00010959,2]
[422538239,1779042643000,-151.0,0.00010959,2]
[422538196,1779042643000,-500.0,0.00010958,2]
[422538209,1779042643000,-500.0,0.00010958,2]
[422538192,1779042643000,-500.0,0.00010958,2]
[422538194,1779042643000,-677.5,0.00010958,2]
[422538187,1779042643000,-511.95,0.00010958,2]
[422538189,1779042643000,-2178.56,0.00010958,2]
[422538211,1779042643000,-502.34,0.00010958,2]
[422538207,1779042643000,-500.0,0.00010958,2]
[422538212,1779042643000,-500.0,0.00010958,2]
[422538225,1779042643000,-4450.26,0.00010958,2]
[422538226,1779042643000,-218.66783909,0.00010959,7]
[422538219,1779042643000,-1238.7,0.00010958,2]
[422538230,1779042643000,-656.00351728,0.00010959,7]
[422538214,1779042643000,-500.0,0.00010958,2]
[422538191,1779042643000,-3083.97,0.00010958,2]
[422538228,1779042643000,-437.33567819,0.00010959,7]
[422538235,1779042643000,-1555.0,0.00010959,2]
[422538256,1779042643000,-151.0,0.00010959,2]
[422538241,1779042643000,-151.0,0.00010959,2]
[422538254,1779042643000,-151.0,0.00010959,2]
[422538252,1779042643000,-151.0,0.00010959,2]
[422538250,1779042643000,-151.0,0.00010959,2]
[422538243,1779042643000,-151.0,0.00010959,2]
[422538234,1779042643000,-306.0,0.00010959,3]
[422538221,1779042643000,-500.0,0.00010958,2]
[422538237,1779042643000,-15000.0,0.00010959,2]
[422538216,1779042643000,-500.0,0.00010958,2]
[422538258,1779042643000,-151.0,0.00010959,2]
[422538217,1779042643000,-500.0,0.00010958,2]
[422538223,1779042643000,-500.0,0.00010958,2]
[422538232,1779042643000,-3372.74,0.00010959,2]
[422538388,1779042644000,-188.096857,0.00010959,2]
[422538411,1779042644000,-494.496092,0.00010959,2]
[422538378,1779042644000,-151.0,0.00010959,2]